bitfinex-derivatives/quotes_BTCF0:USTF0_20251219
["timestamp","ask_amount","ask_price","bid_price","bid_amount"]
[1766127475212,0.0114499,87392.0,87384.0,7e-08]
[1766127475412,0.0114499,87392.0,87367.0,0.011453]
[1766127475612,0.0114499,87392.0,87368.0,0.0058]
[1766127476611,0.0114493,87397.0,87369.0,0.0114528]
[1766127476814,0.0114493,87397.0,87372.0,0.0114524]
[1766127477015,0.011449,87399.0,87375.0,0.011452]
[1766127477312,0.011449,87399.0,87368.0,0.0058]
[1766127477313,0.011449,87399.0,87371.0,0.0114526]
[1766127477620,0.0058,87400.0,87371.0,0.0114526]
[1766127477621,0.0114495,87396.0,87371.0,0.0114526]
[1766127478116,0.0058,87400.0,87366.0,0.0114532]
[1766127478418,0.0114497,87394.0,87368.0,0.0114529]
[1766127480721,0.0058,87400.0,87367.0,0.00576]
[1766127480918,0.0114492,87397.0,87367.0,0.00576]
[1766127481219,0.06112394,87432.0,87380.0,0.28824911]
[1766127481417,0.0114452,87428.0,87404.0,0.0114482]
[1766127481718,0.0572064,87458.0,87384.0,0.05221404]
[1766127481719,0.0114429,87446.0,87410.0,0.28824911]
[1766127481906,2.6957386,87470.0,87417.0,0.0114465]
[1766127481907,0.0114433,87442.0,87417.0,0.0114465]
[1766127482107,0.0114445,87434.0,87421.0,0.00017157]
[1766127482313,0.01537537,87438.0,87421.0,0.00017157]
[1766127483914,0.00393157,87438.0,87421.0,0.00017157]
[1766127484124,0.0114441,87437.0,87421.0,0.00017157]
[1766127484428,0.0114445,87433.0,87421.0,0.00017157]
[1766127484620,0.0114451,87429.0,87421.0,1.57e-06]
[1766127484920,0.0114456,87425.0,87410.0,0.00152]
[1766127485920,0.0114456,87425.0,87400.0,0.0114487]
[1766127486224,0.0114456,87425.0,87401.0,0.00376]
[1766127486421,7e-08,87422.0,87402.0,0.00576]
[1766127486614,0.0114431,87444.0,87402.0,0.00576]
[1766127486810,0.00576,87443.0,87418.0,0.0114463]
[1766127487123,0.00576,87443.0,87420.0,0.0114461]
[1766127487315,0.00576,87443.0,87423.0,0.0114458]
[1766127487510,0.00017157,87442.0,87424.0,0.00017157]
[1766127487915,0.00017157,87442.0,87425.0,0.0114454]
[1766127488124,0.00017157,87442.0,87424.0,0.00017157]
[1766127488624,0.014242,87453.0,87424.0,0.00017157]
[1766127489426,0.00017157,87447.0,87429.0,0.0114449]
[1766127489724,0.00017157,87447.0,87431.0,0.0114447]
[1766127491413,0.00017157,87447.0,87430.0,0.00532]
[1766127493327,0.00017157,87447.0,87431.0,0.0054]
[1766127493517,0.00017157,87447.0,87429.0,0.011445]
[1766127493716,0.00017157,87447.0,87430.0,0.00472]
[1766127494116,0.00017157,87447.0,87425.0,0.0114455]
[1766127494318,0.00017157,87447.0,87427.0,0.0114452]
[1766127495023,0.00017157,87447.0,87428.0,0.00576]
[1766127497424,0.0114428,87446.0,87428.0,0.00576]
[1766127498925,0.0114428,87446.0,87429.0,0.00576]
[1766127499330,0.0114428,87446.0,87430.0,0.00576]
[1766127499921,0.00017157,87447.0,87424.0,0.00017157]
[1766127500121,0.0114431,87444.0,87431.0,0.00576]
[1766127502031,0.00017157,87447.0,87431.0,0.00576]
[1766127502432,0.0114428,87446.0,87431.0,0.00576]
[1766127504635,0.0114432,87443.0,87431.0,0.00576]
[1766127504835,0.00017157,87447.0,87431.0,0.00576]
[1766127505027,0.0114429,87446.0,87431.0,0.00576]
[1766127505226,0.00017157,87447.0,87431.0,0.00576]
[1766127506024,0.0114432,87443.0,87431.0,0.00576]
[1766127506226,0.00017157,87447.0,87432.0,0.0114446]
[1766127506436,0.00017157,87447.0,87431.0,0.00576]
[1766127506636,0.00017157,87447.0,87433.0,0.0114444]
[1766127507722,0.00017157,87447.0,87435.0,0.0114441]
[1766127507929,0.00017157,87447.0,87431.0,0.0172046]
[1766127508124,0.00017157,87447.0,87434.0,0.0114443]
[1766127508423,0.00017157,87447.0,87431.0,0.0172047]
[1766127508623,0.00017157,87447.0,87431.0,0.00576]
[1766127508829,0.0114431,87444.0,87431.0,0.00576]
[1766127509442,0.00017157,87447.0,87431.0,0.00576]
[1766127509628,0.0114429,87446.0,87431.0,0.00576]
[1766127510336,0.0114434,87442.0,87431.0,0.00576]
[1766127511542,0.0114434,87442.0,87424.0,0.00017157]
[1766127511845,0.00017157,87447.0,87425.0,0.00576]
[1766127512235,0.0114434,87442.0,87425.0,0.00576]
[1766127512432,0.0114429,87445.0,87425.0,0.00576]
[1766127513037,0.0114429,87445.0,87424.0,0.01161717]
[1766127513243,0.0114429,87445.0,87425.0,0.00576]
[1766127513440,0.0114433,87442.0,87425.0,0.00576]
[1766127513945,0.0114429,87446.0,87425.0,0.00576]
[1766127514143,0.0114432,87444.0,87425.0,0.00576]
[1766127514343,0.00017157,87447.0,87425.0,0.00576]
[1766127514344,0.0114435,87441.0,87425.0,0.00576]
[1766127515035,0.011443,87445.0,87425.0,0.00576]
[1766127515435,0.0114433,87442.0,87426.0,0.00576]
[1766127515644,0.00017157,87447.0,87424.0,0.00017157]
[1766127515841,0.011445,87429.0,87412.0,0.03061092]
[1766127516046,0.011445,87429.0,87413.0,0.00576]
[1766127516341,0.19644249,87440.0,87394.0,0.04086568]
[1766127516342,0.011447,87414.0,87394.0,0.04086568]
[1766127516535,0.011447,87414.0,87395.0,0.00576]
[1766127516735,0.19644249,87423.0,87395.0,0.00576]
[1766127516736,0.0114465,87418.0,87395.0,0.00576]
[1766127516945,0.00017157,87415.0,87398.0,0.00017157]
[1766127517443,0.00017157,87415.0,87399.0,0.00576]
[1766127518348,0.00017157,87415.0,87398.0,0.00017157]
[1766127518638,0.00017157,87415.0,87400.0,0.00576]
[1766127519630,0.00017157,87415.0,87398.0,0.00017157]
[1766127519933,0.011447,87414.0,87398.0,0.00017157]
[1766127520139,0.0114475,87411.0,87398.0,0.00017157]
[1766127520338,0.00017157,87415.0,87398.0,0.00017157]
[1766127520536,0.00017157,87415.0,87398.0,7e-08]
[1766127520737,0.0114483,87404.0,87398.0,7e-08]
[1766127521348,0.00017157,87415.0,87398.0,7e-08]
[1766127522541,0.00017157,87415.0,87399.0,0.00268]
[1766127527146,1.57e-06,87415.0,87399.0,0.00268]
[1766127528255,1.57e-06,87415.0,87400.0,0.0114487]
[1766127529153,1.57e-06,87415.0,87399.0,0.00268]
[1766127529452,1.57e-06,87415.0,87400.0,0.0114488]
[1766127529650,0.06112394,87444.0,87400.0,0.19644249]
[1766127529847,0.19644249,87440.0,87408.0,0.0114476]
[1766127530049,0.19644249,87440.0,87411.0,0.0114474]
[1766127530353,0.0114445,87434.0,87411.0,0.0114474]
[1766127530553,0.0114445,87434.0,87414.0,0.0114469]
[1766127530739,0.00017157,87433.0,87415.0,0.00017157]
[1766127531144,0.00017157,87433.0,87416.0,0.0114467]
[1766127531849,0.00017157,87433.0,87415.0,0.00017157]
[1766127532051,0.00576,87453.0,87423.0,0.0114458]
[1766127532248,0.0114422,87451.0,87428.0,0.0114451]
[1766127532647,0.0114426,87448.0,87424.0,0.0141256]
[1766127532850,0.00576,87453.0,87424.0,0.0141256]
[1766127533151,0.00017157,87447.0,87425.0,0.00456]
[1766127533356,0.00017157,87447.0,87420.0,0.0114461]
[1766127533357,0.00017157,87447.0,87426.0,0.00456]
[1766127533650,0.0114439,87438.0,87416.0,0.0114467]
[1766127533852,0.0114434,87442.0,87418.0,0.0114464]
[1766127534052,0.0114434,87442.0,87421.0,0.011446]
[1766127534555,0.0114434,87442.0,87417.0,0.0052]
[1766127535454,0.00017157,87447.0,87415.0,0.01161837]
[1766127535658,0.00017157,87447.0,87416.0,0.00576]
[1766127536149,0.00017157,87447.0,87417.0,0.00564]
[1766127536552,0.0114442,87436.0,87418.0,0.0056]
[1766127536747,0.0114442,87436.0,87419.0,0.00576]
[1766127540052,0.0114437,87440.0,87419.0,0.00576]
[1766127540455,0.0114437,87440.0,87420.0,0.0114461]
[1766127540956,0.0114437,87440.0,87419.0,0.00576]
[1766127540957,0.01161427,87447.0,87426.0,0.0114454]
[1766127541151,0.00017157,87447.0,87419.0,0.00576]
[1766127541358,0.00017157,87447.0,87420.0,0.19644249]
[1766127541751,0.00017157,87447.0,87420.0,0.0114461]
[1766127542151,0.0114433,87443.0,87415.0,0.00017157]
[1766127542346,0.0114433,87443.0,87420.0,0.0114461]
[1766127542757,0.00017157,87447.0,87426.0,0.0114453]
[1766127542952,0.00017157,87447.0,87427.0,0.00576]
[1766127543347,0.00017157,87447.0,87428.0,0.00556]
[1766127543951,0.00017157,87447.0,87429.0,0.011445]
[1766127544753,0.00017157,87447.0,87430.0,0.00548]
[1766127545451,0.1964599,87440.0,87420.0,0.1964599]
[1766127545659,0.1964599,87440.0,87422.0,0.0114459]
[1766127546748,0.01161427,87447.0,87425.0,0.0114455]
[1766127549070,0.01161427,87447.0,87426.0,0.00576]
[1766127549866,0.01161427,87447.0,87425.0,0.0114455]
[1766127550061,0.0114435,87441.0,87420.0,0.1964599]
[1766127550359,0.0114439,87438.0,87421.0,0.00576]
[1766127550668,0.0114433,87442.0,87423.0,0.0114458]
[1766127550959,0.0114433,87442.0,87421.0,0.00576]
[1766127551263,0.0114433,87442.0,87422.0,0.0114459]
[1766127551666,0.0114429,87446.0,87422.0,0.0114459]
[1766127551854,0.00017157,87447.0,87421.0,0.00576]
[1766127552056,7e-08,87447.0,87444.0,0.011443]
[1766127552251,0.0114392,87474.0,87450.0,0.0114423]
[1766127552462,0.1964599,87470.0,87453.0,0.0114418]
[1766127552668,0.1964599,87470.0,87454.0,0.00428]
[1766127553357,0.01144,87468.0,87454.0,0.00428]
[1766127555061,0.0114404,87465.0,87454.0,0.00428]
[1766127555258,0.0114404,87465.0,87455.0,0.0022]
[1766127557067,0.0114402,87466.0,87455.0,0.0022]
[1766127557867,0.00017157,87470.0,87456.0,0.0114414]
[1766127558071,0.3208,87516.0,87476.0,0.0114388]
[1766127558072,0.0114355,87502.0,87476.0,0.0114388]
[1766127558367,0.29944517,87520.0,87478.0,0.0114386]
[1766127558368,0.011435,87506.0,87478.0,0.0114386]
[1766127558568,0.0114348,87507.0,87479.0,2.40728]
[1766127558760,0.28801197,87510.0,87480.0,0.0171983]
[1766127558960,0.0114351,87505.0,87480.0,0.0171983]
[1766127559171,0.00017147,87501.0,87484.0,0.00017147]
[1766127561568,0.00017147,87501.0,87485.0,0.0114377]
[1766127563583,0.0114335,87517.0,87493.0,0.0114366]
[1766127563770,0.00237393,87525.0,87494.0,0.00576]
[1766127563972,0.00237393,87525.0,87484.0,0.00017147]
[1766127563973,0.00237393,87525.0,87491.0,0.0114368]
[1766127564165,0.0114334,87518.0,87492.0,0.00368]
[1766127564670,0.00017147,87514.0,87492.0,0.00368]
[1766127564859,0.00017147,87514.0,87493.0,0.0114366]
[1766127565975,0.00017147,87514.0,87494.0,0.00576]
[1766127566366,0.00017147,87514.0,87494.0,0.0171965]
[1766127567268,0.00017147,87514.0,87495.0,0.00576]
[1766127568374,0.00017147,87514.0,87495.0,0.0171963]
[1766127569862,0.00017147,87514.0,87498.0,0.0114359]
[1766127570976,0.00017147,87514.0,87489.0,0.0114371]
[1766127571179,0.01160547,87514.0,87490.0,2.4197169]
[1766127571775,0.01160547,87514.0,87484.0,0.00017147]
[1766127571776,0.00017147,87514.0,87484.0,0.00017147]
[1766127571981,0.0114348,87508.0,87485.0,0.00576]
[1766127572171,0.0114348,87508.0,87486.0,0.0114375]
[1766127573071,0.0114348,87508.0,87487.0,0.00576]
[1766127573381,0.0114351,87505.0,87488.0,0.00576]
[1766127573581,0.00017147,87514.0,87484.0,0.00017147]
[1766127573966,0.00017147,87514.0,87485.0,0.00188]
[1766127574378,0.0114355,87502.0,87485.0,0.00188]
[1766127574572,0.0114355,87502.0,87484.0,0.00017147]
[1766127574777,0.0114355,87502.0,87485.0,0.00268]
[1766127576378,0.0114355,87502.0,87484.0,0.00017147]
[1766127576580,0.00585147,87514.0,87460.0,0.28801197]
[1766127576781,0.00585147,87514.0,87461.0,0.00576]
[1766127576782,0.0114367,87493.0,87461.0,0.00576]
[1766127577279,0.0114362,87497.0,87474.0,0.0114391]
[1766127577474,0.0114357,87501.0,87476.0,0.0114388]
[1766127577673,0.0114357,87501.0,87475.0,0.00576]
[1766127577674,0.00017147,87497.0,87480.0,0.00017147]
[1766127578085,0.00017147,87497.0,87481.0,0.0114381]
[1766127578474,0.00017147,87497.0,87480.0,0.00017147]
[1766127580478,0.0114363,87496.0,87480.0,0.00017147]
[1766127582686,0.00017147,87497.0,87480.0,0.00017147]
[1766127584279,0.0114367,87493.0,87480.0,0.00017147]
[1766127585784,0.00017147,87497.0,87480.0,0.00017147]
[1766127585986,0.00017147,87497.0,87480.0,0.28818344]
[1766127586285,1.47e-06,87497.0,87481.0,0.0114381]
[1766127586585,1.47e-06,87497.0,87480.0,0.00017147]
[1766127587385,1.47e-06,87497.0,87484.0,0.0114377]
[1766127588588,1.47e-06,87497.0,87481.0,0.0114381]
[1766127589388,1.47e-06,87497.0,87480.0,0.00017147]
[1766127589781,1.47e-06,87497.0,87484.0,0.0114378]
[1766127590183,1.47e-06,87497.0,87480.0,0.01160977]
[1766127590481,1.47e-06,87497.0,87480.0,0.28818344]
[1766127590686,1.47e-06,87497.0,87486.0,0.0114375]
[1766127590985,1.47e-06,87497.0,87487.0,0.00576]
[1766127591585,1.47e-06,87497.0,87494.0,0.0114364]
[1766127592292,1.47e-06,87497.0,87487.0,0.00576]
[1766127592490,1.47e-06,87497.0,87487.0,0.0171973]
[1766127594195,1.47e-06,87497.0,87490.0,0.0114369]
[1766127595092,1.47e-06,87497.0,87487.0,0.00576]
[1766127595293,1.47e-06,87497.0,87488.0,0.0114373]
[1766127596094,0.00576,87512.0,87491.0,0.0114368]
[1766127597294,0.06112394,87536.0,87502.0,0.39226654]
[1766127597499,0.06112394,87545.0,87528.0,0.19613327]
[1766127597792,0.06112394,87548.0,87520.0,0.19613327]
[1766127597987,0.06112394,87547.0,87522.0,0.0114328]
[1766127598186,0.0114295,87548.0,87522.0,0.0114328]
[1766127598386,0.00011312,87539.0,87521.0,0.00017136]
[1766127598695,0.00011312,87539.0,87522.0,0.00576]
[1766127599793,0.00011312,87539.0,87521.0,0.00017136]
[1766127599994,0.00011312,87539.0,87522.0,0.00576]
[1766127600787,0.00011312,87539.0,87521.0,0.00017136]
[1766127600989,0.00011312,87539.0,87522.0,0.00576]
[1766127601192,0.00576,87558.0,87522.0,0.00576]
[1766127601193,0.0114288,87553.0,87522.0,0.00576]
[1766127601497,0.00576,87558.0,87523.0,0.0114327]
[1766127601686,0.00576,87558.0,87522.0,0.00576]
[1766127601884,0.0114307,87539.0,87521.0,0.00017136]
[1766127602087,0.00576,87558.0,87522.0,0.00092]
[1766127602088,0.0114299,87545.0,87522.0,0.00092]
[1766127602293,0.0114304,87541.0,87522.0,0.00092]
[1766127602687,0.0114299,87545.0,87521.0,0.00017136]
[1766127602887,0.0114293,87549.0,87522.0,0.00576]
[1766127603087,0.0114288,87554.0,87528.0,0.0114319]
[1766127603487,0.0114288,87554.0,87522.0,0.00576]
[1766127603684,0.01143,87545.0,87522.0,0.00576]
[1766127604199,0.28745584,87550.0,87521.0,0.00017136]
[1766127604801,0.0114323,87527.0,87521.0,6e-08]
[1766127604988,0.0114317,87531.0,87521.0,6e-08]
[1766127605387,0.0114312,87535.0,87521.0,6e-08]
[1766127605696,0.0114309,87537.0,87521.0,6e-08]
[1766127605889,0.0114304,87541.0,87521.0,6e-08]
[1766127606096,0.0001713,87544.0,87521.0,6e-08]
[1766127606097,1.7e-06,87544.0,87530.0,0.28745584]
[1766127606295,1.7e-06,87544.0,87538.0,0.0114307]
[1766127606496,1.7e-06,87544.0,87540.0,0.0114305]
[1766127606993,1.7e-06,87544.0,87541.0,0.00576]
[1766127607298,0.0114245,87586.0,87541.0,0.00576]
[1766127607487,0.01370929,87578.0,87552.0,0.0114288]
[1766127607689,0.0114264,87572.0,87543.0,0.0114301]
[1766127608003,0.0114261,87574.0,87545.0,0.0114298]
[1766127608301,0.0114274,87564.0,87551.0,0.00017136]
[1766127608609,0.00228369,87578.0,87552.0,0.00576]
[1766127609187,0.00228369,87578.0,87551.0,0.00017136]
[1766127609389,0.00228369,87578.0,87552.0,0.00192]
[1766127609888,0.0114249,87584.0,87560.0,0.28745584]
[1766127610090,0.0114246,87586.0,87561.0,0.00068]
[1766127610798,0.0144227,87600.0,87570.0,0.28745584]
[1766127611095,0.0114232,87596.0,87576.0,0.00017126]
[1766127611296,0.003,87600.0,87576.0,0.00017126]
[1766127611798,0.0114179,87637.0,87600.0,0.29887844]
[1766127612001,0.28745584,87660.0,87610.0,0.00017126]
[1766127612295,0.06111874,87679.0,87611.0,0.00228]
[1766127612497,0.002,87673.0,87630.0,0.28745584]
[1766127612689,1.61e-06,87658.0,87635.0,0.00017115]
[1766127612889,0.0114106,87693.0,87635.0,0.00017115]
[1766127612890,0.0114119,87683.0,87641.0,0.0114173]
[1766127613189,0.01,87705.0,87653.0,0.00017115]
[1766127613499,0.00227953,87738.0,87705.0,0.011409]
[1766127613697,0.00227953,87738.0,87688.0,0.28745584]
[1766127613698,0.0114031,87751.0,87710.0,0.28745584]
[1766127613901,0.0114031,87751.0,87707.0,0.0114086]
[1766127613902,0.0114054,87733.0,87700.0,0.28745584]
[1766127614197,0.0114039,87745.0,87719.0,5e-08]
[1766127614397,0.0058,87744.0,87681.0,0.11399713]
[1766127614598,0.0114007,87770.0,87681.0,0.11399713]
[1766127614599,0.0570121,87756.0,87682.0,2.42387409]
[1766127614895,0.0114075,87717.0,87682.0,0.17169606]
[1766127615096,0.0114075,87717.0,87680.0,2.68769584]
[1766127615097,0.00168,87716.0,87683.0,0.0058]
[1766127615397,0.011406,87728.0,87691.0,0.00017105]
[1766127615604,0.28745584,87720.0,87679.0,9.551e-05]
[1766127615895,0.0114111,87689.0,87679.0,9.551e-05]
[1766127616107,0.0058,87690.0,87653.0,2.39968]
[1766127616299,0.0058,87690.0,87640.0,0.28745584]
[1766127616300,0.0114081,87712.0,87672.0,0.0114133]
[1766127616492,0.0114097,87700.0,87683.0,0.00017105]
[1766127616701,0.0058,87701.0,87683.0,5e-08]
[1766127616996,0.0114115,87686.0,87647.0,2.3994]
[1766127617197,0.0114115,87686.0,87615.0,0.0399215]
[1766127617198,8.393e-05,87649.0,87635.0,2.3994]
[1766127617388,0.0114115,87686.0,87639.0,0.28745584]
[1766127617588,0.0114124,87679.0,87639.0,0.28745584]
[1766127617788,0.00192,87678.0,87643.0,0.011417]
[1766127618000,0.00064,87690.0,87661.0,0.0114146]
[1766127618191,5e-08,87669.0,87663.0,0.0114145]
[1766127618393,0.0114073,87718.0,87677.0,0.0114126]
[1766127618600,0.0114065,87725.0,87687.0,0.0114113]
[1766127618901,0.0114055,87732.0,87693.0,0.0114105]
[1766127619103,0.01,87746.0,87665.0,0.17121415]
[1766127619104,0.0114058,87730.0,87704.0,0.00017104]
[1766127619292,0.00364,87729.0,87704.0,0.00017104]
[1766127619489,0.0114062,87727.0,87704.0,0.00017104]
[1766127619994,0.00364,87729.0,87704.0,0.00017104]
[1766127620304,0.01,87746.0,87710.0,0.20663824]
[1766127620491,0.01,87746.0,87711.0,2.40452]
[1766127620893,0.01,87746.0,87712.0,0.11400493]
[1766127621190,0.0113999,87775.0,87712.0,0.28548342]
[1766127621398,0.0034,87774.0,87735.0,0.00017104]
[1766127621799,0.19522994,87770.0,87735.0,0.00117104]
[1766127621997,0.0114014,87764.0,87735.0,0.00117104]
[1766127622300,0.00388,87763.0,87735.0,0.00117104]
[1766127622702,0.00388,87763.0,87735.0,0.00017104]
[1766127622703,0.19522994,87760.0,87735.0,0.00017104]
[1766127622907,2.39804,87796.0,87736.0,0.2855288]
[1766127623099,0.0058,87781.0,87760.0,0.19522994]
[1766127623297,0.0058,87781.0,87760.0,0.00597093]
[1766127623499,0.0058,87781.0,87760.0,0.00017093]
[1766127624207,0.01,87787.0,87760.0,0.00017093]
[1766127624208,0.0113988,87784.0,87760.0,0.00017093]
[1766127624395,0.00312,87777.0,87760.0,0.00017093]
[1766127624992,0.0113999,87776.0,87760.0,3e-08]
[1766127625201,0.011401,87767.0,87686.0,0.0114114]
[1766127625402,0.0114041,87743.0,87710.0,0.19522994]
[1766127625596,0.19522994,87730.0,87690.0,0.19522994]
[1766127625798,0.0114069,87722.0,87685.0,0.0172115]
[1766127626100,0.00392,87729.0,87695.0,0.00017103]
[1766127626101,0.00017082,87712.0,87695.0,0.00017103]
[1766127626299,0.01173892,87712.0,87695.0,0.00017103]
[1766127626495,0.0114088,87707.0,87685.0,0.0058]
[1766127626699,0.00033082,87712.0,87685.0,0.0058]
[1766127626993,0.20663974,87700.0,87684.0,0.00012085]
[1766127627205,0.0058,87706.0,87684.0,0.00012085]
[1766127627501,0.0058,87706.0,87686.0,0.00017103]
[1766127627707,0.011409,87705.0,87686.0,0.00017103]
[1766127628093,0.011409,87705.0,87684.0,0.00012085]
[1766127628295,0.0114097,87700.0,87665.0,0.0114141]
[1766127628501,0.0114097,87700.0,87660.0,0.19522994]
[1766127628502,0.011411,87690.0,87660.0,0.19522994]
[1766127628704,0.00392,87689.0,87664.0,0.00392]
[1766127629100,0.00017103,87685.0,87668.0,0.00017103]
[1766127629305,0.00010457,87684.0,87668.0,0.00017103]
[1766127630310,0.0026,87696.0,87668.0,0.00597103]
[1766127630698,0.0026,87696.0,87670.0,0.19522994]
[1766127631111,0.00017103,87692.0,87670.0,0.19522994]
[1766127631301,0.00017103,87692.0,87668.0,0.00597103]
[1766127631601,0.0114109,87691.0,87668.0,0.00017103]
[1766127632312,0.00017103,87692.0,87668.0,0.00017103]
[1766127633095,0.00216,87691.0,87668.0,0.00017103]
[1766127633312,0.0114111,87689.0,87668.0,0.00017103]
[1766127633712,0.19522994,87690.0,87623.0,0.02937297]
[1766127634013,0.0114123,87680.0,87640.0,0.20664734]
[1766127634315,0.0114126,87678.0,87640.0,0.20664734]
[1766127634497,2.39696,87701.0,87635.0,2.39776]
[1766127634498,0.0114132,87673.0,87635.0,2.39776]
[1766127634811,0.00017103,87663.0,87645.0,0.00017103]
[1766127636009,3e-08,87663.0,87653.0,0.0114157]
[1766127636214,0.19522994,87710.0,87653.0,0.0058]
[1766127636409,0.0114116,87686.0,87653.0,0.0058]
[1766127636709,0.19622993,87720.0,87660.0,0.19522994]
[1766127636912,2.40104,87719.0,87670.0,0.19522994]
[1766127637101,0.0114097,87700.0,87661.0,0.0058]
[1766127637306,0.00017103,87689.0,87672.0,0.00017103]
[1766127637614,3e-08,87689.0,87672.0,0.00017103]
[1766127637813,0.0114076,87716.0,87679.0,0.19522994]
[1766127638013,0.0114088,87707.0,87676.0,0.0114127]
[1766127638310,0.00016,87715.0,87672.0,0.00017103]
[1766127638626,0.011411,87690.0,87672.0,0.00017103]
[1766127638804,0.0058,87689.0,87672.0,0.00017103]
[1766127639006,0.0114118,87684.0,87655.0,2.39712]
[1766127639311,0.19522994,87680.0,87644.0,2.39712]
[1766127639510,0.0114134,87672.0,87646.0,0.0058]
[1766127639706,0.0114127,87677.0,87646.0,0.0058]
[1766127640114,0.00017103,87670.0,87653.0,0.00017103]
[1766127640305,0.00524,87669.0,87653.0,0.00017103]
[1766127640909,0.0166537,87669.0,87653.0,0.00017103]
[1766127641107,0.00524,87669.0,87638.0,0.02937297]
[1766127641302,0.0114144,87664.0,87639.0,0.01784595]
[1766127641511,0.00524,87669.0,87640.0,0.01784595]
[1766127641712,0.0114168,87645.0,87634.0,4.6e-07]
[1766127641914,0.0114168,87645.0,87613.0,0.05885994]
[1766127641915,0.0114177,87639.0,87618.0,0.03165562]
[1766127642110,0.0114184,87633.0,87618.0,0.00228265]
[1766127642307,0.0114184,87633.0,87605.0,0.0058]
[1766127642308,0.0058,87632.0,87605.0,0.0058]
[1766127642513,0.0114191,87628.0,87605.0,0.0058]
[1766127643015,0.00011467,87627.0,87600.0,0.20665264]
[1766127643206,0.00011467,87627.0,87605.0,0.00017113]
[1766127643409,7e-08,87627.0,87622.0,0.0114197]
[1766127643617,0.00017113,87637.0,87617.0,0.20665034]
[1766127643804,0.00017113,87637.0,87617.0,0.0114204]
[1766127644005,0.00017113,87637.0,87621.0,0.0114199]
[1766127644210,2.4088542,87666.0,87633.0,0.0114182]
[1766127644511,0.0114149,87660.0,87630.0,0.19522994]
[1766127644713,0.0114149,87660.0,87629.0,0.0058]
[1766127644714,0.0058,87659.0,87629.0,0.0058]
[1766127645111,0.0114152,87658.0,87629.0,0.0058]
[1766127645423,0.00017113,87652.0,87635.0,0.01158913]
[1766127645719,0.00017113,87652.0,87635.0,0.00017113]
[1766127646111,0.00017113,87652.0,87636.0,0.0114179]
[1766127646312,0.00017113,87652.0,87635.0,0.00017113]
[1766127647225,0.00017113,87652.0,87636.0,0.0114179]
[1766127647914,0.00017113,87652.0,87640.0,0.19522994]
[1766127648109,0.00017113,87652.0,87640.0,0.20664734]
[1766127648310,3e-08,87652.0,87640.0,0.19522994]
[1766127648622,0.0114122,87681.0,87652.0,0.0114159]
[1766127648820,0.0058,87680.0,87652.0,0.0114159]
[1766127649021,0.0114124,87679.0,87650.0,0.19522994]
[1766127649623,0.00017113,87673.0,87656.0,0.00017113]
[1766127649921,0.00332,87672.0,87656.0,0.00017113]
[1766127652425,0.00388,87685.0,87660.0,0.19522994]
[1766127652625,0.00388,87684.0,87660.0,0.19522994]
[1766127653320,0.00017095,87681.0,87663.0,0.00017113]
[1766127653830,0.00296,87682.0,87663.0,0.01158553]
[1766127654129,0.0114077,87715.0,87687.0,0.0114113]
[1766127654319,0.011408,87713.0,87690.0,0.19522994]
[1766127654514,0.011408,87713.0,87684.0,0.00312]
[1766127654725,0.011408,87713.0,87685.0,0.01783984]
[1766127654920,0.0008,87714.0,87690.0,0.19540107]
[1766127655126,0.0008,87714.0,87698.0,0.00228057]
[1766127655323,0.0008,87714.0,87699.0,0.01783813]
[1766127655530,0.0008,87714.0,87700.0,0.01783813]
[1766127655731,0.0008,87714.0,87701.0,0.01783813]
[1766127655932,0.0008,87714.0,87702.0,0.01783813]
[1766127656228,0.0008,87714.0,87703.0,0.01783813]
[1766127656423,0.0008,87714.0,87698.0,0.00228057]
[1766127656729,0.0008,87714.0,87699.0,0.01783818]
[1766127656931,0.0008,87714.0,87700.0,0.01783818]
[1766127657132,0.0114074,87717.0,87698.0,0.00228057]
[1766127657523,0.0058,87719.0,87698.0,0.00228057]
[1766127658629,0.0114073,87718.0,87698.0,0.00228057]
[1766127659234,0.0058,87719.0,87698.0,0.00228057]
[1766127660134,0.0058,87719.0,87705.0,0.011409]
[1766127660337,2.3972,87741.0,87716.0,0.0114075]
[1766127660637,0.00099999,87780.0,87730.0,0.19522994]
[1766127660638,0.01120996,87776.0,87730.0,0.19522994]
[1766127660825,0.0058,87775.0,87744.0,0.00017103]
[1766127661128,0.00227849,87778.0,87761.0,0.0114016]
[1766127661320,0.00227849,87778.0,87762.0,0.0058]
[1766127661523,0.00227849,87778.0,87744.0,0.00017103]
[1766127661524,0.003,87777.0,87744.0,0.00017103]
[1766127662037,0.0114017,87762.0,87744.0,0.00017103]
[1766127662230,0.0114017,87762.0,87719.0,0.05885994]
[1766127662231,0.0114043,87741.0,87723.0,0.02937297]
[1766127662419,0.0114043,87741.0,87710.0,0.19522994]
[1766127662420,0.0114037,87746.0,87716.0,0.02937297]
[1766127662625,0.00484,87746.0,87717.0,0.0058]
[1766127662928,0.00484,87746.0,87710.0,2.59218994]
[1766127662929,0.00164,87756.0,87730.0,0.19522994]
[1766127663123,0.00056,87764.0,87740.0,0.19522994]
[1766127663325,0.00017033,87752.0,87740.0,0.0058]
[1766127663528,0.00017033,87752.0,87734.0,0.00017092]
[1766127663529,0.0114036,87747.0,87734.0,0.00017092]
[1766127663737,0.0114036,87747.0,87729.0,0.00064]
[1766127664625,0.0114036,87747.0,87729.0,0.00081092]
[1766127664827,0.0114041,87743.0,87729.0,0.00081092]
[1766127665139,0.0114032,87750.0,87729.0,0.00081092]
[1766127665334,0.00033033,87752.0,87729.0,0.00081092]
[1766127665536,0.00033033,87752.0,87730.0,0.19522994]
[1766127665839,0.00017033,87752.0,87732.0,0.0114055]
[1766127666337,0.00017033,87752.0,87729.0,0.00081092]
[1766127666632,0.01157323,87752.0,87729.0,0.00081092]
[1766127666833,0.00017033,87752.0,87729.0,0.00081092]
[1766127667025,0.00017033,87752.0,87730.0,0.19522994]
[1766127667629,0.00017033,87752.0,87729.0,0.00081092]
[1766127667630,3e-08,87752.0,87750.0,0.0114031]
[1766127667827,0.0113979,87791.0,87751.0,0.0058]
[1766127668028,0.00076,87803.0,87760.0,0.19522994]
[1766127668236,0.0113997,87777.0,87740.0,0.19522994]
[1766127668431,0.0113997,87777.0,87746.0,0.0114036]
[1766127668739,0.0113959,87806.0,87750.0,0.20663304]
[1766127668740,0.0002,87783.0,87750.0,0.20663304]
[1766127668929,0.0002,87783.0,87755.0,0.00017092]
[1766127668930,0.00017092,87773.0,87755.0,0.00017092]
[1766127669638,0.00017092,87773.0,87760.0,0.19522994]
[1766127669834,0.00017092,87773.0,87761.0,0.0058]
[1766127670631,0.01,87787.0,87761.0,0.0058]
[1766127671042,0.011399,87782.0,87761.0,0.0058]
[1766127671742,0.01367799,87778.0,87761.0,0.0058]